[Event "Early-Titled-Tuesday-Blitz-September-05-2023"]
[Site "Chess.com"]
[Date "2023.09.05"]
[Round "5"]
[White "Andrej2004"]
[Black "MasterKroket"]
[Result "1-0"]
[WhiteElo "2561"]
[BlackElo "2409"]
[TimeControl "180+1"]
[EndTime "8:52:49 PDT"]
[Termination "Andrej2004 won by resignation"]

1. Nf3 {[%clk 0:03:00]} 1... Nf6 {[%clk 0:02:31.3]} 2. b3 {[%clk 0:02:58.8]}
2... d6 {[%clk 0:02:29.6]} 3. Bb2 {[%clk 0:02:58.2]} 3... e5 {[%clk 0:02:29.6]}
4. d3 {[%clk 0:02:56.8]} 4... g6 {[%clk 0:02:28.6]} 5. c4 {[%clk 0:02:55.3]}
5... Bg7 {[%clk 0:02:28.8]} 6. g3 {[%clk 0:02:55.3]} 6... O-O {[%clk 0:02:28.9]}
7. Bg2 {[%clk 0:02:55.7]} 7... Nc6 {[%clk 0:02:26.6]} 8. Nc3 {[%clk 0:02:54.4]}
8... e4 {[%clk 0:02:23.3]} 9. Nxe4 {[%clk 0:02:49.8]} 9... Nxe4 {[%clk
0:02:22.2]} 10. Bxg7 {[%clk 0:02:49.8]} 10... Nxf2 {[%clk 0:02:22.5]} 11. Kxf2
{[%clk 0:02:46.3]} 11... Kxg7 {[%clk 0:02:22.8]} 12. Rf1 {[%clk 0:02:41.6]}
12... f5 {[%clk 0:02:20.6]} 13. d4 {[%clk 0:02:41.2]} 13... Re8 {[%clk
0:02:18.8]} 14. Kg1 {[%clk 0:02:36.9]} 14... Qe7 {[%clk 0:02:16.5]} 15. d5
{[%clk 0:02:37.2]} 15... Qe3+ {[%clk 0:02:14.5]} 16. Kh1 {[%clk 0:02:33]} 16...
Ne5 {[%clk 0:02:14]} 17. Qd4 {[%clk 0:01:59.2]} 17... Qxd4 {[%clk 0:02:11.6]}
18. Nxd4 {[%clk 0:02:00.1]} 18... Ng4 {[%clk 0:02:12.1]} 19. e4 {[%clk
0:01:45.8]} 19... Ne3 {[%clk 0:02:06.9]} 20. Rf4 {[%clk 0:01:37.6]} 20... Nxg2
{[%clk 0:02:06.2]} 21. Kxg2 {[%clk 0:01:37.3]} 21... Rxe4 {[%clk 0:02:06]} 22.
Rxe4 {[%clk 0:01:34.1]} 22... fxe4 {[%clk 0:02:06.9]} 23. Re1 {[%clk 0:01:33.5]}
23... Bf5 {[%clk 0:02:07.5]} 24. g4 {[%clk 0:01:33.6]} 24... Bxg4 {[%clk
0:02:07.4]} 25. Rxe4 {[%clk 0:01:33.5]} 25... h5 {[%clk 0:01:54.6]} 26. h3
{[%clk 0:01:32.6]} 26... Bf5 {[%clk 0:01:53.3]} 27. Nxf5+ {[%clk 0:01:13.8]}
27... gxf5 {[%clk 0:01:54.2]} 28. Re7+ {[%clk 0:01:13.8]} 28... Kf6 {[%clk
0:01:54.9]} 29. Rxc7 {[%clk 0:01:14.7]} 29... Rg8+ {[%clk 0:01:54.8]} 30. Kf2
{[%clk 0:01:15]} 30... Rg7 {[%clk 0:01:54.3]} 31. Rc8 {[%clk 0:00:58.5]} 31...
Ke5 {[%clk 0:01:51.8]} 32. Rh8 {[%clk 0:00:57.7]} 32... f4 {[%clk 0:01:39]} 33.
Rxh5+ {[%clk 0:00:56.3]} 33... Ke4 {[%clk 0:01:39.7]} 34. Rh6 {[%clk 0:00:55.4]}
34... Rg3 {[%clk 0:01:39.1]} 35. Re6+ {[%clk 0:00:55.4]} 35... Kf5 {[%clk
0:01:39.2]} 36. Rxd6 {[%clk 0:00:52.1]} 36... Rxh3 {[%clk 0:01:39.8]} 37. Rd7
{[%clk 0:00:50.4]} 37... Rh2+ {[%clk 0:01:31.3]} 38. Kf3 {[%clk 0:00:48.2]}
38... Rh3+ {[%clk 0:01:30.8]} 39. Kg2 {[%clk 0:00:47.8]} 39... Rg3+ {[%clk
0:01:29.6]} 40. Kf2 {[%clk 0:00:47.3]} 40... Ke4 {[%clk 0:01:24.8]} 41. Re7+
{[%clk 0:00:46]} 41... Kd4 {[%clk 0:01:23.7]} 42. Rxb7 {[%clk 0:00:45.8]} 1-0

[Event "Early-Titled-Tuesday-Blitz-September-05-2023"]
[Site "Chess.com"]
[Date "2023.09.05"]
[Round "5"]
[White "AsadliVugar"]
[Black "Haykoooo0o"]
[Result "1-0"]
[WhiteElo "2803"]
[BlackElo "2488"]
[TimeControl "180+1"]
[EndTime "8:52:50 PDT"]
[Termination "AsadliVugar won by resignation"]

1. e4 {[%clk 0:02:56.4]} 1... e5 {[%clk 0:02:56.8]} 2. Nf3 {[%clk 0:02:56.6]}
2... Nc6 {[%clk 0:02:57.3]} 3. Bc4 {[%clk 0:02:56.8]} 3... Bc5 {[%clk
0:02:56.5]} 4. O-O {[%clk 0:02:56.2]} 4... Nf6 {[%clk 0:02:57.1]} 5. d3 {[%clk
0:02:56.4]} 5... d6 {[%clk 0:02:55.6]} 6. a4 {[%clk 0:02:56.1]} 6... a6 {[%clk
0:02:55.6]} 7. h3 {[%clk 0:02:50.9]} 7... h6 {[%clk 0:02:52.8]} 8. Nc3 {[%clk
0:02:46.7]} 8... Ba7 {[%clk 0:02:49.7]} 9. Nd5 {[%clk 0:02:45.1]} 9... Nxd5
{[%clk 0:02:48.3]} 10. Bxd5 {[%clk 0:02:45.6]} 10... Ne7 {[%clk 0:02:43.9]} 11.
Bb3 {[%clk 0:02:44.9]} 11... Ng6 {[%clk 0:02:43.8]} 12. Be3 {[%clk 0:02:41.3]}
12... O-O {[%clk 0:02:40.7]} 13. d4 {[%clk 0:02:41.3]} 13... Qe7 {[%clk
0:02:37.4]} 14. Re1 {[%clk 0:02:38.4]} 14... a5 {[%clk 0:02:25.2]} 15. Qd2
{[%clk 0:02:22.8]} 15... Bb6 {[%clk 0:02:22.5]} 16. dxe5 {[%clk 0:02:17.7]}
16... dxe5 {[%clk 0:02:02.1]} 17. Bxb6 {[%clk 0:02:11.7]} 17... cxb6 {[%clk
0:02:03]} 18. Rad1 {[%clk 0:02:11.1]} 18... Be6 {[%clk 0:02:00.4]} 19. Qd6
{[%clk 0:02:08.9]} 19... Bxb3 {[%clk 0:01:49]} 20. cxb3 {[%clk 0:02:06.3]} 20...
Rac8 {[%clk 0:01:27.6]} 21. Qxe7 {[%clk 0:02:04.6]} 21... Nxe7 {[%clk
0:01:28.5]} 22. Nxe5 {[%clk 0:02:05.1]} 22... Rfe8 {[%clk 0:01:24.7]} 23. Nc4
{[%clk 0:02:02.6]} 23... Rc6 {[%clk 0:01:23.4]} 24. Rd7 {[%clk 0:02:00.4]} 24...
Nf5 {[%clk 0:01:02.2]} 25. f3 {[%clk 0:01:55.3]} 25... Re7 {[%clk 0:00:55]} 26.
Red1 {[%clk 0:01:54]} 26... Rxd7 {[%clk 0:00:48.6]} 27. Rxd7 {[%clk 0:01:54.5]}
27... Nh4 {[%clk 0:00:48.4]} 28. Kf2 {[%clk 0:01:51.5]} 28... Ng6 {[%clk
0:00:38.1]} 29. Rxb7 {[%clk 0:01:49.7]} 29... Nf4 {[%clk 0:00:38.6]} 30. Rxb6
{[%clk 0:01:49.5]} 30... Rc7 {[%clk 0:00:34]} 31. g3 {[%clk 0:01:43.7]} 31...
Nd3+ {[%clk 0:00:33]} 32. Ke3 {[%clk 0:01:43.6]} 32... Nc5 {[%clk 0:00:32.3]}
33. Nxa5 {[%clk 0:01:42]} 33... Ne6 {[%clk 0:00:30]} 34. Nc4 {[%clk 0:01:37.4]}
34... Rd7 {[%clk 0:00:30.4]} 35. a5 {[%clk 0:01:35.7]} 35... Rd1 {[%clk
0:00:23.3]} 36. a6 {[%clk 0:01:35]} 36... Ra1 {[%clk 0:00:23.9]} 37. Na3 {[%clk
0:01:34.6]} 1-0

[Event "Early-Titled-Tuesday-Blitz-September-05-2023"]
[Site "Chess.com"]
[Date "2023.09.05"]
[Round "5"]
[White "ural58"]
[Black "crazy_m_attack"]
[Result "0-1"]
[WhiteElo "2512"]
[BlackElo "2358"]
[TimeControl "180+1"]
[EndTime "8:52:52 PDT"]
[Termination "crazy_m_attack won by resignation"]

1. e4 {[%clk 0:02:56.4]} 1... e5 {[%clk 0:03:00]} 2. Nf3 {[%clk 0:02:55.4]} 2...
Nc6 {[%clk 0:03:00.3]} 3. Bc4 {[%clk 0:02:55.1]} 3... Nf6 {[%clk 0:02:59.5]} 4.
Ng5 {[%clk 0:02:54.7]} 4... d5 {[%clk 0:02:59.5]} 5. exd5 {[%clk 0:02:54.4]}
5... Na5 {[%clk 0:02:59.9]} 6. Bb5+ {[%clk 0:02:54.4]} 6... c6 {[%clk
0:03:00.4]} 7. dxc6 {[%clk 0:02:54.5]} 7... bxc6 {[%clk 0:03:01.3]} 8. Bd3
{[%clk 0:02:54.4]} 8... Ng4 {[%clk 0:03:01.7]} 9. Nh3 {[%clk 0:02:54.1]} 9... f5
{[%clk 0:02:54.5]} 10. O-O {[%clk 0:02:42.5]} 10... Bd6 {[%clk 0:02:47.5]} 11.
Be2 {[%clk 0:02:37.7]} 11... O-O {[%clk 0:02:43.9]} 12. d3 {[%clk 0:02:27.2]}
12... h6 {[%clk 0:02:21.9]} 13. f3 {[%clk 0:02:21.9]} 13... Bc5+ {[%clk
0:02:10.3]} 14. Kh1 {[%clk 0:02:21.6]} 14... Ne3 {[%clk 0:02:00]} 15. Bxe3
{[%clk 0:02:20.5]} 15... Bxe3 {[%clk 0:02:00.8]} 16. Nd2 {[%clk 0:02:14.1]}
16... Rb8 {[%clk 0:01:42.8]} 17. Nb3 {[%clk 0:02:10.2]} 17... Nxb3 {[%clk
0:01:42]} 18. axb3 {[%clk 0:02:11.1]} 18... Qd4 {[%clk 0:01:23.2]} 19. c3 {[%clk
0:02:09.7]} 19... Qb6 {[%clk 0:01:22.6]} 20. b4 {[%clk 0:02:09.6]} 20... f4
{[%clk 0:01:22]} 21. Ng1 {[%clk 0:01:44.3]} 21... Be6 {[%clk 0:01:09.2]} 22. Qa4
{[%clk 0:01:44]} 22... Rf5 {[%clk 0:01:03.8]} 23. Qxa7 {[%clk 0:01:41.1]} 23...
Qxa7 {[%clk 0:01:02.5]} 24. Rxa7 {[%clk 0:01:41.1]} 24... Bxa7 {[%clk
0:01:03.4]} 25. Bd1 {[%clk 0:01:37.7]} 25... Bxg1 {[%clk 0:00:58.8]} 26. Kxg1
{[%clk 0:01:37.4]} 26... Rf7 {[%clk 0:00:57.3]} 27. Bc2 {[%clk 0:01:36.6]} 27...
Rd7 {[%clk 0:00:55.6]} 28. Re1 {[%clk 0:01:36.3]} 28... Bf5 {[%clk 0:00:46.9]}
29. Rxe5 {[%clk 0:01:34.5]} 29... Bxd3 {[%clk 0:00:46.7]} 30. Bb3+ {[%clk
0:01:34.8]} 30... Kh8 {[%clk 0:00:46]} 31. g3 {[%clk 0:01:33.1]} 31... fxg3
{[%clk 0:00:45.5]} 32. hxg3 {[%clk 0:01:33.3]} 32... Rf8 {[%clk 0:00:44.3]} 33.
Kf2 {[%clk 0:01:33.2]} 33... Bf5 {[%clk 0:00:34.6]} 34. g4 {[%clk 0:01:32.2]}
34... Bxg4 {[%clk 0:00:33.1]} 35. Kg3 {[%clk 0:01:31.5]} 35... Bxf3 {[%clk
0:00:31.8]} 36. Be6 {[%clk 0:01:30.7]} 36... Re7 {[%clk 0:00:28.8]} 0-1

[Event "Early-Titled-Tuesday-Blitz-September-05-2023"]
[Site "Chess.com"]
[Date "2023.09.05"]
[Round "5"]
[White "Zhigalko_Sergei"]
[Black "Yeremyan_ChessMate"]
[Result "0-1"]
[WhiteElo "2882"]
[BlackElo "2672"]
[TimeControl "180+1"]
[EndTime "8:52:53 PDT"]
[Termination "Yeremyan_ChessMate won on time"]

1. e4 {[%clk 0:03:00.9]} 1... c5 {[%clk 0:02:59.9]} 2. Nf3 {[%clk 0:03:00.4]}
2... Nc6 {[%clk 0:03:00.6]} 3. c3 {[%clk 0:03:00.5]} 3... Nf6 {[%clk 0:03:00.3]}
4. e5 {[%clk 0:03:00.8]} 4... Nd5 {[%clk 0:03:01.1]} 5. Bc4 {[%clk 0:03:01.2]}
5... Nb6 {[%clk 0:03:01.2]} 6. Bb3 {[%clk 0:03:01.4]} 6... d6 {[%clk 0:02:57.1]}
7. exd6 {[%clk 0:03:01.7]} 7... Qxd6 {[%clk 0:02:56.4]} 8. O-O {[%clk
0:03:01.7]} 8... g6 {[%clk 0:02:56.6]} 9. d4 {[%clk 0:02:56.9]} 9... cxd4 {[%clk
0:02:56.4]} 10. Ng5 {[%clk 0:02:45.5]} 10... e6 {[%clk 0:02:44.4]} 11. Ne4
{[%clk 0:02:42.8]} 11... Qd8 {[%clk 0:02:42.3]} 12. Bg5 {[%clk 0:02:42.5]} 12...
Be7 {[%clk 0:02:42.9]} 13. Bh6 {[%clk 0:02:43]} 13... f5 {[%clk 0:02:35.4]} 14.
Ng3 {[%clk 0:02:39]} 14... Bf6 {[%clk 0:02:33.9]} 15. Re1 {[%clk 0:02:27]} 15...
Kf7 {[%clk 0:02:33.8]} 16. Qe2 {[%clk 0:01:02.7]} 16... Re8 {[%clk 0:02:27]} 17.
Na3 {[%clk 0:00:59.3]} 17... Nd5 {[%clk 0:02:21.1]} 18. Rad1 {[%clk 0:00:55.8]}
18... Bd7 {[%clk 0:02:21.1]} 19. Nb5 {[%clk 0:00:52.5]} 19... Qb8 {[%clk
0:02:14.6]} 20. cxd4 {[%clk 0:00:36.1]} 20... a6 {[%clk 0:02:13.5]} 21. Nc3
{[%clk 0:00:36.1]} 21... Qd6 {[%clk 0:02:03.1]} 22. Nxd5 {[%clk 0:00:25.8]}
22... exd5 {[%clk 0:02:03]} 23. Qf3 {[%clk 0:00:26.2]} 23... Kg8 {[%clk
0:01:20]} 0-1

[Event "Early-Titled-Tuesday-Blitz-September-05-2023"]
[Site "Chess.com"]
[Date "2023.09.05"]
[Round "5"]
[White "Iunusovnuriddin"]
[Black "bazar-wokzal"]
[Result "0-1"]
[WhiteElo "2318"]
[BlackElo "2530"]
[TimeControl "180+1"]
[EndTime "8:52:57 PDT"]
[Termination "bazar-wokzal won by resignation"]

1. e4 {[%clk 0:03:00.9]} 1... Nc6 {[%clk 0:02:59.5]} 2. Nf3 {[%clk 0:02:59.9]}
2... d5 {[%clk 0:02:59.2]} 3. exd5 {[%clk 0:02:58.8]} 3... Qxd5 {[%clk
0:02:58.9]} 4. Nc3 {[%clk 0:02:59.4]} 4... Qa5 {[%clk 0:02:58.9]} 5. Bc4 {[%clk
0:02:55.1]} 5... Bg4 {[%clk 0:02:56.7]} 6. h3 {[%clk 0:02:54.7]} 6... Bh5 {[%clk
0:02:56.4]} 7. O-O {[%clk 0:02:53.9]} 7... O-O-O {[%clk 0:02:55.7]} 8. a3 {[%clk
0:01:54]} 8... Nf6 {[%clk 0:02:35]} 9. b4 {[%clk 0:01:31.8]} 9... Qf5 {[%clk
0:02:04.6]} 10. Be2 {[%clk 0:01:21.1]} 10... Bxf3 {[%clk 0:01:57.1]} 11. Bxf3
{[%clk 0:01:19.9]} 11... Nd4 {[%clk 0:01:57.4]} 12. d3 {[%clk 0:00:48.6]} 12...
Nxf3+ {[%clk 0:01:56.3]} 13. Qxf3 {[%clk 0:00:49.5]} 13... Qxf3 {[%clk 0:01:56]}
14. gxf3 {[%clk 0:00:50.3]} 14... e6 {[%clk 0:01:56.3]} 15. Be3 {[%clk
0:00:45.8]} 15... Kb8 {[%clk 0:01:49.2]} 16. b5 {[%clk 0:00:45.7]} 16... Be7
{[%clk 0:01:47.1]} 17. a4 {[%clk 0:00:44.4]} 17... Nd5 {[%clk 0:01:46.2]} 18.
Ne4 {[%clk 0:00:40.2]} 18... f5 {[%clk 0:01:43.4]} 19. Nc5 {[%clk 0:00:28.4]}
19... Nxe3 {[%clk 0:01:40.9]} 20. Nxe6 {[%clk 0:00:19.3]} 20... Nxf1 {[%clk
0:01:38.8]} 21. Nxd8 {[%clk 0:00:20.2]} 21... Rxd8 {[%clk 0:01:37.5]} 22. Kxf1
{[%clk 0:00:20.6]} 22... Kc8 {[%clk 0:01:34.9]} 23. Re1 {[%clk 0:00:18.1]} 23...
Kd7 {[%clk 0:01:34.9]} 24. Re5 {[%clk 0:00:17.1]} 24... g6 {[%clk 0:01:34.9]}
25. c4 {[%clk 0:00:17]} 25... Bf6 {[%clk 0:01:34.9]} 26. Rd5+ {[%clk 0:00:16.5]}
26... Ke7 {[%clk 0:01:34.4]} 27. Rc5 {[%clk 0:00:16.9]} 27... Kd7 {[%clk
0:01:32.4]} 28. Ke2 {[%clk 0:00:14.3]} 28... Bd4 {[%clk 0:01:24]} 0-1

[Event "Early-Titled-Tuesday-Blitz-September-05-2023"]
[Site "Chess.com"]
[Date "2023.09.05"]
[Round "5"]
[White "NovozhilovSemen"]
[Black "TanitoluwaAps116"]
[Result "1-0"]
[WhiteElo "2587"]
[BlackElo "2776"]
[TimeControl "180+1"]
[EndTime "8:53:01 PDT"]
[Termination "NovozhilovSemen won by checkmate"]

1. d4 {[%clk 0:03:00.9]} 1... Nf6 {[%clk 0:00:14]} 2. Nf3 {[%clk 0:02:59.8]}
2... e6 {[%clk 0:00:14.5]} 3. c4 {[%clk 0:02:59.7]} 3... b6 {[%clk 0:00:14.7]}
4. e3 {[%clk 0:02:59.8]} 4... Ba6 {[%clk 0:00:15.3]} 5. Bd3 {[%clk 0:03:00.5]}
5... Bb7 {[%clk 0:00:15.8]} 6. O-O {[%clk 0:03:00.9]} 6... Be7 {[%clk
0:00:16.7]} 7. Nc3 {[%clk 0:03:01.4]} 7... O-O {[%clk 0:00:17.3]} 8. b3 {[%clk
0:03:01.7]} 8... d5 {[%clk 0:00:18]} 9. Bb2 {[%clk 0:03:02]} 9... c5 {[%clk
0:00:18.1]} 10. cxd5 {[%clk 0:03:02]} 10... cxd4 {[%clk 0:00:18.2]} 11. Nxd4
{[%clk 0:02:59.8]} 11... Nxd5 {[%clk 0:00:18.4]} 12. Qg4 {[%clk 0:02:57.8]}
12... Nxc3 {[%clk 0:00:18.1]} 13. Bxc3 {[%clk 0:02:58.3]} 13... Bf6 {[%clk
0:00:18.7]} 14. Rad1 {[%clk 0:02:57.7]} 14... Qd5 {[%clk 0:00:18.9]} 15. Nb5
{[%clk 0:02:53.4]} 15... Qg5 {[%clk 0:00:16.2]} 16. Qxg5 {[%clk 0:02:52.1]}
16... Bxg5 {[%clk 0:00:17.1]} 17. Nc7 {[%clk 0:02:52.2]} 17... Nc6 {[%clk
0:00:11]} 18. Nxa8 {[%clk 0:02:52.3]} 18... Bxa8 {[%clk 0:00:11.2]} 19. Be4
{[%clk 0:02:52.5]} 19... f5 {[%clk 0:00:11.3]} 20. Bf3 {[%clk 0:02:52.2]} 20...
Rc8 {[%clk 0:00:08.7]} 21. Rd6 {[%clk 0:02:47.5]} 21... Kf7 {[%clk 0:00:06]} 22.
Rfd1 {[%clk 0:02:45.8]} 22... Be7 {[%clk 0:00:06.2]} 23. Rd7 {[%clk 0:02:45.3]}
23... Ke8 {[%clk 0:00:04.4]} 24. Bxg7 {[%clk 0:02:40.1]} 24... Nb4 {[%clk
0:00:03.9]} 25. Bxa8 {[%clk 0:02:36.7]} 25... Rxa8 {[%clk 0:00:04.8]} 26. R7d2
{[%clk 0:02:33.3]} 26... Kf7 {[%clk 0:00:03.6]} 27. Bd4 {[%clk 0:02:31.4]} 27...
Rc8 {[%clk 0:00:03.1]} 28. f3 {[%clk 0:02:29.7]} 28... Nd5 {[%clk 0:00:03.3]}
29. Kf2 {[%clk 0:02:29.5]} 29... Bh4+ {[%clk 0:00:03.4]} 30. g3 {[%clk
0:02:29.5]} 30... Bg5 {[%clk 0:00:04.1]} 31. h4 {[%clk 0:02:29.1]} 31... Be7
{[%clk 0:00:04]} 32. e4 {[%clk 0:02:23.2]} 32... fxe4 {[%clk 0:00:03.6]} 33.
fxe4 {[%clk 0:02:24]} 33... Nc3 {[%clk 0:00:04.1]} 34. Re1 {[%clk 0:02:21.5]}
34... Nb5 {[%clk 0:00:03.4]} 35. Be3 {[%clk 0:02:07.7]} 35... Bb4 {[%clk
0:00:03.5]} 36. Rd7+ {[%clk 0:02:07.8]} 36... Ke8 {[%clk 0:00:02.8]} 37. Red1
{[%clk 0:02:08.4]} 37... Rc2+ {[%clk 0:00:02.6]} 38. Kf3 {[%clk 0:02:08.6]}
38... Nc3 {[%clk 0:00:01.9]} 39. R1d3 {[%clk 0:02:06.8]} 39... Ne2 {[%clk
0:00:01.3]} 40. Rd8+ {[%clk 0:02:01.7]} 40... Kf7 {[%clk 0:00:01.5]} 41. R3d7+
{[%clk 0:02:02]} 41... Kg6 {[%clk 0:00:01.6]} 42. Rg8+ {[%clk 0:01:57]} 42...
Kf6 {[%clk 0:00:01.9]} 43. Bg5+ {[%clk 0:01:56.9]} 43... Ke5 {[%clk 0:00:02.5]}
44. Bf4+ {[%clk 0:01:57.2]} 44... Kf6 {[%clk 0:00:02.5]} 45. e5+ {[%clk
0:01:57.6]} 45... Kf5 {[%clk 0:00:02.7]} 46. Rg5# {[%clk 0:01:58.2]} 1-0

[Event "Early-Titled-Tuesday-Blitz-September-05-2023"]
[Site "Chess.com"]
[Date "2023.09.05"]
[Round "5"]
[White "GamayevOleg"]
[Black "BatboldNyamsuren0919"]
[Result "0-1"]
[WhiteElo "2612"]
[BlackElo "2468"]
[TimeControl "180+1"]
[EndTime "8:53:03 PDT"]
[Termination "BatboldNyamsuren0919 won by resignation"]

1. Nf3 {[%clk 0:02:54]} 1... Nf6 {[%clk 0:02:59.4]} 2. g3 {[%clk 0:02:54.5]}
2... d5 {[%clk 0:02:58.4]} 3. Bg2 {[%clk 0:02:55]} 3... Bg4 {[%clk 0:02:58.9]}
4. O-O {[%clk 0:02:55.9]} 4... Nbd7 {[%clk 0:02:58.6]} 5. d3 {[%clk 0:02:56.4]}
5... c6 {[%clk 0:02:58.8]} 6. Nc3 {[%clk 0:02:55.9]} 6... e6 {[%clk 0:02:58.9]}
7. h3 {[%clk 0:02:52.6]} 7... Bh5 {[%clk 0:02:57.2]} 8. e4 {[%clk 0:02:52.5]}
8... Be7 {[%clk 0:02:57]} 9. Bg5 {[%clk 0:02:51.4]} 9... O-O {[%clk 0:02:56.5]}
10. Qd2 {[%clk 0:02:51.5]} 10... dxe4 {[%clk 0:02:43.9]} 11. Nxe4 {[%clk
0:02:40.1]} 11... Nxe4 {[%clk 0:02:40.9]} 12. dxe4 {[%clk 0:02:41]} 12... Bxf3
{[%clk 0:02:34.8]} 13. Bxe7 {[%clk 0:02:39.5]} 13... Qxe7 {[%clk 0:02:35.7]} 14.
Bxf3 {[%clk 0:02:39.4]} 14... Ne5 {[%clk 0:02:35.7]} 15. Be2 {[%clk 0:02:40]}
15... Rfd8 {[%clk 0:02:34.8]} 16. Qe3 {[%clk 0:02:40.2]} 16... Qb4 {[%clk
0:02:33.3]} 17. Rab1 {[%clk 0:02:33.8]} 17... Qd2 {[%clk 0:02:30.1]} 18. Qxd2
{[%clk 0:02:30.8]} 18... Rxd2 {[%clk 0:02:31]} 19. Bd1 {[%clk 0:02:30.8]} 19...
Rad8 {[%clk 0:02:26.8]} 20. b3 {[%clk 0:02:21.7]} 20... h6 {[%clk 0:02:24.6]}
21. Rc1 {[%clk 0:02:17.4]} 21... c5 {[%clk 0:02:24.1]} 22. f4 {[%clk 0:02:17]}
22... Nc6 {[%clk 0:02:23.9]} 23. Bf3 {[%clk 0:02:17.6]} 23... Nb4 {[%clk
0:02:23.8]} 24. a3 {[%clk 0:01:45.1]} 24... Nxc2 {[%clk 0:02:19.2]} 25. Rf2
{[%clk 0:01:42.6]} 25... Rxf2 {[%clk 0:02:18.7]} 26. Kxf2 {[%clk 0:01:43.5]}
26... Rd2+ {[%clk 0:02:19.2]} 27. Kg1 {[%clk 0:01:42.4]} 27... b6 {[%clk
0:02:16.4]} 28. a4 {[%clk 0:01:37.4]} 28... Nd4 {[%clk 0:02:16]} 29. Bd1 {[%clk
0:01:37]} 29... Rb2 {[%clk 0:02:15.6]} 30. Rc3 {[%clk 0:01:35.6]} 30... Rb1
{[%clk 0:02:15.2]} 31. Rd3 {[%clk 0:01:36.1]} 31... Nxb3 {[%clk 0:02:10]} 32.
Rxb3 {[%clk 0:01:32.5]} 32... Rxd1+ {[%clk 0:02:09.7]} 33. Kf2 {[%clk
0:01:33.2]} 33... Ra1 {[%clk 0:02:02.8]} 34. Rd3 {[%clk 0:01:33.2]} 34... Rxa4
{[%clk 0:02:02.4]} 35. Ke3 {[%clk 0:01:32.2]} 35... Rd4 {[%clk 0:02:00.6]} 36.
Ra3 {[%clk 0:01:30.6]} 36... Rd7 {[%clk 0:02:00.9]} 37. e5 {[%clk 0:01:29.2]}
37... f6 {[%clk 0:02:00.6]} 38. g4 {[%clk 0:01:29.8]} 38... fxe5 {[%clk
0:01:59.5]} 39. fxe5 {[%clk 0:01:30.3]} 39... c4 {[%clk 0:01:56.2]} 40. Ra4
{[%clk 0:01:29.2]} 40... Rc7 {[%clk 0:01:55.9]} 41. Kd2 {[%clk 0:01:27]} 41...
c3+ {[%clk 0:01:53.3]} 42. Kc2 {[%clk 0:01:27.1]} 42... a5 {[%clk 0:01:42.8]}
43. Rd4 {[%clk 0:01:26.4]} 43... Kf7 {[%clk 0:01:40.5]} 44. Rd6 {[%clk
0:01:26.9]} 44... b5 {[%clk 0:01:40.2]} 45. Ra6 {[%clk 0:01:27]} 45... a4 {[%clk
0:01:39.1]} 46. Rb6 {[%clk 0:01:27.2]} 46... Rc5 {[%clk 0:01:39.5]} 47. Rb7+
{[%clk 0:01:27]} 47... Kg6 {[%clk 0:01:39.2]} 48. h4 {[%clk 0:01:27.4]} 48... h5
{[%clk 0:01:35.7]} 49. gxh5+ {[%clk 0:01:26.5]} 49... Kxh5 {[%clk 0:01:34.4]}
50. Rxg7 {[%clk 0:01:27]} 50... b4 {[%clk 0:01:34.7]} 51. Rb7 {[%clk 0:01:23.1]}
51... b3+ {[%clk 0:01:34.3]} 52. Kc1 {[%clk 0:01:23.8]} 52... Rxe5 {[%clk
0:01:28.9]} 53. Kd1 {[%clk 0:01:18.4]} 53... c2+ {[%clk 0:01:27.9]} 54. Kd2
{[%clk 0:01:16.5]} 54... Rd5+ {[%clk 0:01:28.1]} 0-1

[Event "Early-Titled-Tuesday-Blitz-September-05-2023"]
[Site "Chess.com"]
[Date "2023.09.05"]
[Round "5"]
[White "Langua_Chess"]
[Black "Druid24"]
[Result "0-1"]
[WhiteElo "2484"]
[BlackElo "2655"]
[TimeControl "180+1"]
[EndTime "8:53:05 PDT"]
[Termination "Druid24 won on time"]

1. d4 {[%clk 0:02:59.7]} 1... Nf6 {[%clk 0:02:58.5]} 2. c4 {[%clk 0:02:59.1]}
2... g6 {[%clk 0:02:58.9]} 3. Nc3 {[%clk 0:02:59.3]} 3... Bg7 {[%clk 0:02:59.7]}
4. e4 {[%clk 0:03:00]} 4... d6 {[%clk 0:02:59.9]} 5. h3 {[%clk 0:02:57.6]} 5...
O-O {[%clk 0:02:59.4]} 6. Be3 {[%clk 0:02:57.9]} 6... e5 {[%clk 0:02:58.9]} 7.
d5 {[%clk 0:02:57.3]} 7... Nbd7 {[%clk 0:02:58.3]} 8. g4 {[%clk 0:02:40.4]} 8...
Nc5 {[%clk 0:02:57.6]} 9. f3 {[%clk 0:02:34.3]} 9... a5 {[%clk 0:02:57.1]} 10.
h4 {[%clk 0:02:28.8]} 10... c6 {[%clk 0:02:55.2]} 11. h5 {[%clk 0:02:23.5]}
11... a4 {[%clk 0:02:49.9]} 12. Qd2 {[%clk 0:01:59.2]} 12... a3 {[%clk 0:02:11]}
13. b4 {[%clk 0:01:46.1]} 13... Na4 {[%clk 0:02:10.1]} 14. O-O-O {[%clk
0:01:06.1]} 14... Nxc3 {[%clk 0:02:08.8]} 15. Qxc3 {[%clk 0:01:06.1]} 15... cxd5
{[%clk 0:02:08]} 16. cxd5 {[%clk 0:00:59.2]} 16... Bxg4 {[%clk 0:02:05.6]} 17.
Kb1 {[%clk 0:00:43.2]} 17... Bxh5 {[%clk 0:02:02.7]} 18. Be2 {[%clk 0:00:36.3]}
18... Qc8 {[%clk 0:01:59.4]} 19. Qd2 {[%clk 0:00:34.5]} 19... Qd7 {[%clk
0:01:57.1]} 20. Nh3 {[%clk 0:00:26.6]} 20... Rfc8 {[%clk 0:01:35.2]} 21. Ng5
{[%clk 0:00:23.5]} 21... h6 {[%clk 0:01:35.2]} 22. Nh3 {[%clk 0:00:19.6]} 22...
Kh7 {[%clk 0:01:34.9]} 23. Nf2 {[%clk 0:00:20.1]} 23... Ra4 {[%clk 0:01:30.7]}
24. Ng4 {[%clk 0:00:20]} 24... Bxg4 {[%clk 0:01:28.7]} 25. Bxh6 {[%clk
0:00:16.3]} 25... Bh5 {[%clk 0:01:28]} 26. Bxg7 {[%clk 0:00:09.2]} 26... Kxg7
{[%clk 0:01:28.7]} 27. Qg5 {[%clk 0:00:02.6]} 27... Rxb4+ {[%clk 0:01:27.1]} 28.
Ka1 {[%clk 0:00:03.3]} 28... Rc2 {[%clk 0:01:25.6]} 29. Bd3 {[%clk 0:00:01.9]}
29... Qa4 {[%clk 0:01:22.2]} 30. Rdg1 {[%clk 0:00:01.6]} 30... Rxa2+ {[%clk
0:01:21.8]} 31. Kxa2 {[%clk 0:00:01.5]} 31... Qb3+ {[%clk 0:01:22.5]} 0-1